bitfinex/quotes_BTCUSD_20241028
["timestamp","ask_amount","ask_price","bid_price","bid_amount"]
[1730099808748,0.292066,68478.0,68469.0,0.34735381]
[1730099809216,0.146041,68474.0,68469.0,0.34735381]
[1730099809458,0.146041,68474.0,68469.0,0.15055381]
[1730099809459,0.14622602,68470.0,68469.0,0.15055381]
[1730099809953,0.14622602,68470.0,68469.0,0.15355381]
[1730099810410,0.14622602,68470.0,68469.0,0.15055381]
[1730099810411,0.00017702,68470.0,68469.0,0.15055381]
[1730099810645,0.00017702,68470.0,68469.0,0.52000481]
[1730099812055,0.00017702,68470.0,68469.0,0.52457501]
[1730099812318,0.00017702,68470.0,68469.0,0.52957501]
[1730099812787,0.00100002,68470.0,68469.0,0.53257501]
[1730099813244,0.00100002,68470.0,68469.0,0.52957501]
[1730099813716,0.00100002,68470.0,68469.0,0.53257501]
[1730099814205,0.00100002,68470.0,68469.0,0.52957501]
[1730099814428,0.00100002,68470.0,68469.0,0.53257501]
[1730099814677,0.00100002,68470.0,68469.0,0.52757497]
[1730099815639,0.00100002,68470.0,68469.0,0.52457497]
[1730099816100,0.00100002,68470.0,68469.0,0.52757497]
[1730099816336,0.00100002,68470.0,68469.0,0.53214499]
[1730099817052,0.00100002,68470.0,68469.0,0.52914499]
[1730099817494,0.00100002,68470.0,68469.0,0.53214499]
[1730099818211,0.00100002,68470.0,68469.0,0.53714499]
[1730099818419,0.00100002,68470.0,68469.0,0.53714482]
[1730099818845,0.00100002,68470.0,68469.0,0.5325748]
[1730099819512,0.00100002,68470.0,68469.0,0.53988678]
[1730099820575,0.00100002,68470.0,68469.0,0.67206517]
[1730099821702,0.00100002,68470.0,68469.0,0.67206502]
[1730099823210,0.00100002,68470.0,68469.0,0.67406502]
[1730099823420,0.00100002,68470.0,68469.0,0.67206502]
[1730099823631,0.00100002,68470.0,68469.0,0.67406502]
[1730099824064,0.00100002,68470.0,68469.0,0.67206502]
[1730099824508,0.00100002,68470.0,68469.0,0.68406493]
[1730099824729,0.00100002,68470.0,68469.0,0.68370807]
[1730099825174,0.00100002,68470.0,68469.0,1.18370807]
[1730099825605,0.00100002,68470.0,68469.0,1.18570807]
[1730099826124,0.000827,68479.0,68475.0,0.26013791]
[1730099826335,0.000827,68479.0,68475.0,0.69323032]
[1730099827022,0.000827,68479.0,68475.0,0.65385041]
[1730099827453,0.000827,68479.0,68475.0,0.16543402]
[1730099827681,0.000827,68479.0,68475.0,0.30708154]
[1730099827912,0.000827,68479.0,68475.0,0.31439329]
[1730099828134,0.000827,68479.0,68475.0,0.31147287]
[1730099828573,0.000827,68479.0,68475.0,0.4317702]
[1730099828787,0.000827,68479.0,68475.0,0.46365179]
[1730099829028,0.000827,68479.0,68475.0,0.46822152]
[1730099829248,0.000827,68479.0,68475.0,0.33904313]
[1730099829679,0.000827,68479.0,68475.0,0.33604313]
[1730099829885,0.000827,68479.0,68475.0,0.46822152]
[1730099830124,0.000827,68479.0,68475.0,0.46565179]
[1730099830554,0.000827,68479.0,68475.0,0.1624354]
[1730099830785,0.1461429,68476.0,68475.0,0.15969362]
[1730099831006,0.1461429,68476.0,68475.0,0.15512365]
[1730099831225,0.1461429,68476.0,68475.0,0.15055381]
[1730099831689,0.1461429,68476.0,68475.0,0.14322932]
[1730099831949,0.1461429,68476.0,68475.0,0.14622932]
[1730099832225,0.0001069,68476.0,68475.0,0.14622932]
[1730099832448,0.0001069,68476.0,68475.0,0.28926732]
[1730099832669,0.0001069,68476.0,68475.0,0.14322932]
[1730099832900,0.0001069,68476.0,68475.0,0.14622932]
[1730099833330,0.1461429,68476.0,68475.0,0.14622932]
[1730099833515,0.1461429,68476.0,68475.0,0.14322932]
[1730099833990,0.1461429,68476.0,68475.0,0.14622932]
[1730099835096,0.1461429,68476.0,68475.0,0.14322932]
[1730099835736,0.1511429,68476.0,68475.0,0.14322932]
[1730099835947,0.1511429,68476.0,68475.0,5e-05]
[1730099836185,0.1521429,68476.0,68475.0,5e-05]
[1730099836393,0.30763479,68476.0,68475.0,5e-05]
[1730099836605,0.42613479,68476.0,68475.0,5e-05]
[1730099836850,0.42513479,68476.0,68475.0,5e-05]
[1730099837071,0.42995679,68476.0,68475.0,5e-05]
[1730099837290,0.39752731,68476.0,68475.0,5e-05]
[1730099837500,0.3540649,68476.0,68475.0,5e-05]
[1730099837707,0.3560649,68476.0,68475.0,5e-05]
[1730099838330,0.50777863,68476.0,68475.0,5e-05]
[1730099838568,0.51577863,68476.0,68475.0,0.00105]
[1730099838782,0.07443801,68476.0,68475.0,0.15155381]
[1730099838992,0.0089289,68476.0,68475.0,0.29759181]
[1730099839212,0.0089289,68476.0,68475.0,0.32059181]
[1730099839861,0.0089289,68476.0,68475.0,0.31959181]
[1730099840067,0.0009289,68476.0,68475.0,0.31959181]
[1730099840487,0.0009289,68476.0,68475.0,0.32259181]
[1730099846067,0.0009289,68476.0,68475.0,0.17655381]
[1730099846289,0.0009289,68476.0,68475.0,0.32259181]
[1730099846948,0.0009289,68476.0,68475.0,0.40099181]
[1730099847174,0.0009289,68476.0,68475.0,0.51159181]
[1730099848474,0.0009289,68476.0,68475.0,0.43319181]
[1730099849161,0.0009289,68476.0,68475.0,0.43483581]
[1730099849383,0.0009289,68476.0,68475.0,0.32423581]
[1730099856271,0.0009289,68476.0,68475.0,0.32880557]
[1730099856491,0.0009289,68476.0,68475.0,0.32423581]
[1730099859197,0.0009289,68476.0,68475.0,0.44843581]
[1730099859414,0.0009289,68476.0,68475.0,0.67381411]
[1730099859628,0.0009289,68476.0,68475.0,0.7763835]
[1730099860263,0.0009289,68476.0,68475.0,0.7733835]
[1730099860443,0.0009289,68476.0,68475.0,0.7753835]
[1730099860676,0.0009289,68476.0,68475.0,0.8046435]
[1730099861095,0.0009289,68476.0,68475.0,0.8026435]
[1730099861509,0.0009289,68476.0,68475.0,0.8046435]
[1730099861932,0.0009289,68476.0,68475.0,0.8026435]
[1730099862144,0.0009289,68476.0,68475.0,0.8066435]
[1730099862360,0.0009289,68476.0,68475.0,0.8046435]
[1730099862571,0.0009289,68476.0,68475.0,0.3048052]
[1730099862780,0.0009289,68476.0,68475.0,0.4374142]
[1730099863019,0.0009289,68476.0,68475.0,0.6280142]
[1730099863226,0.0009289,68476.0,68475.0,0.6425835]
[1730099863656,0.0009289,68476.0,68475.0,0.6718435]
[1730099863876,0.0009289,68476.0,68475.0,0.6948435]
[1730099864349,0.0009289,68476.0,68475.0,0.6928435]
[1730099864771,0.0009289,68476.0,68475.0,0.6635835]
[1730099864976,0.00077267,68476.0,68475.0,0.6655835]
[1730099865416,0.00077267,68476.0,68475.0,0.43498359]
[1730099865625,0.00077267,68476.0,68475.0,0.4354142]
[1730099866469,0.00077267,68476.0,68475.0,0.4374142]
[1730099866703,0.00077267,68476.0,68475.0,0.4604142]
[1730099866917,0.00077267,68476.0,68475.0,0.4554142]
[1730099867540,0.00077267,68476.0,68475.0,0.45798359]
[1730099867980,0.00077267,68476.0,68475.0,0.45998359]
[1730099869386,0.00077267,68476.0,68475.0,0.45798359]
[1730099870882,0.00077267,68476.0,68475.0,0.45998359]
[1730099871085,0.00077267,68476.0,68475.0,9.45998359]
[1730099874555,0.00077267,68476.0,68475.0,9.67119468]
[1730099875644,0.00077267,68476.0,68475.0,9.66119477]
[1730099878430,0.000828,68485.0,68484.0,0.146019]
[1730099878638,0.000828,68485.0,68484.0,0.45632065]
[1730099879286,0.000828,68485.0,68484.0,0.46363177]
[1730099879740,0.000828,68485.0,68484.0,0.67693168]
[1730099880153,0.26984948,68499.0,68489.0,0.146008]
[1730099880154,0.01732967,68490.0,68489.0,0.146008]
[1730099880378,0.01732967,68490.0,68489.0,0.45630965]
[1730099882049,0.01732967,68490.0,68489.0,0.45830965]
[1730099884156,0.01732967,68490.0,68489.0,0.81764864]
[1730099884437,0.04452349,68509.0,68489.0,0.81764864]
[1730099884438,0.000827,68509.0,68508.0,0.00272083]
[1730099884712,0.000827,68523.0,68516.0,0.15867174]
[1730099884933,5.449e-05,68529.0,68528.0,0.145925]
[1730099885159,5.449e-05,68529.0,68528.0,0.16118333]
[1730099885406,5.449e-05,68529.0,68528.0,0.5237447]
[1730099885628,5.449e-05,68529.0,68528.0,0.29647881]
[1730099885869,5.449e-05,68529.0,68528.0,0.29147881]
[1730099886117,5.449e-05,68529.0,68528.0,0.29647881]
[1730099886327,4e-05,68532.0,68528.0,0.29647881]
[1730099886328,0.00231917,68532.0,68528.0,0.15255381]
[1730099886537,0.00227917,68529.0,68528.0,0.147975]
[1730099886737,4e-05,68532.0,68531.0,0.145919]
[1730099886955,4e-05,68532.0,68531.0,0.145969]
[1730099887367,4e-05,68532.0,68531.0,0.14888713]
[1730099887586,4e-05,68532.0,68531.0,0.145969]
[1730099888473,4e-05,68532.0,68531.0,0.31947281]
[1730099889256,0.00104,68532.0,68531.0,0.32747281]
[1730099889621,4e-05,68532.0,68531.0,0.31947281]
[1730099890249,4e-05,68532.0,68531.0,0.46437194]
[1730099890460,0.0003,68536.0,68535.0,0.18163074]
[1730099890690,0.0003,68536.0,68535.0,0.46436294]
[1730099891346,0.0003,68536.0,68535.0,0.59654133]
[1730099891777,0.000827,68537.0,68536.0,0.18162874]
[1730099891999,0.000827,68545.0,68544.0,0.005]
[1730099892268,0.00017742,68551.0,68550.0,0.173878]
[1730099892497,0.00017742,68551.0,68550.0,0.4566102]
[1730099893391,0.00017742,68551.0,68550.0,0.17355381]
[1730099893674,0.145864,68557.0,68551.0,0.023]
[1730099893890,0.11632969,68559.0,68553.0,0.023]
[1730099893891,0.145868,68555.0,68553.0,0.023]
[1730099894133,0.145862,68558.0,68555.0,0.023]
[1730099894348,0.145864,68557.0,68556.0,0.15050381]
[1730099894564,0.145864,68557.0,68556.0,0.17355381]
[1730099894848,0.145864,68557.0,68556.0,5e-05]
[1730099894849,0.232564,68557.0,68556.0,5e-05]
[1730099895099,0.244564,68557.0,68556.0,5e-05]
[1730099895575,0.242564,68557.0,68556.0,5e-05]
[1730099895802,0.244564,68557.0,68556.0,0.00505]
[1730099896027,0.244564,68557.0,68556.0,0.00605]
[1730099896028,0.345564,68557.0,68556.0,0.00605]
[1730099896274,0.346387,68557.0,68556.0,0.00605]
[1730099896496,0.346387,68557.0,68535.0,0.36478745]
[1730099896497,0.005,68544.0,68535.0,0.21887745]
[1730099896756,0.150891,68544.0,68543.0,0.21887745]
[1730099896989,0.145902,68539.0,68536.0,0.15050381]
[1730099897695,0.2918,68540.0,68536.0,0.15050381]
[1730099897939,0.145906,68537.0,68536.0,0.15050381]
[1730099898182,0.002,68541.0,68528.0,0.13217839]
[1730099898183,0.291817,68536.0,68528.0,0.13217839]
[1730099898433,0.291817,68536.0,68529.0,0.36938126]
[1730099898434,0.0812,68535.0,68529.0,0.36938126]
[1730099898678,0.0812,68535.0,68531.0,0.13217839]
[1730099898679,0.145913,68534.0,68531.0,0.13217839]
[1730099898918,0.145915,68533.0,68532.0,0.15050381]
[1730099899128,0.0812,68535.0,68532.0,0.15050381]
[1730099899129,0.239741,68534.0,68532.0,0.15050381]
[1730099899365,0.145915,68533.0,68532.0,0.15050381]
[1730099899580,0.0812,68535.0,68532.0,0.15050381]
[1730099899793,0.0812,68535.0,68533.0,0.023]
[1730099900064,0.0812,68535.0,68534.0,0.17350381]
[1730099900471,0.145895,68542.0,68534.0,0.17350381]
[1730099900691,0.145898,68541.0,68534.0,0.17350381]
[1730099900923,0.150895,68543.0,68534.0,0.17350381]
[1730099901168,0.005,68543.0,68534.0,0.17350381]
[1730099901438,0.59196245,68544.0,68534.0,0.17350381]
[1730099901659,0.145895,68543.0,68534.0,0.17350381]
[1730099901880,0.0813,68544.0,68534.0,0.17350381]
[1730099902114,0.145898,68541.0,68534.0,0.17350381]
[1730099902330,0.291787,68543.0,68534.0,0.17350381]
[1730099902331,0.145901,68540.0,68534.0,0.17350381]
[1730099902547,0.145901,68540.0,68534.0,0.17850381]
[1730099902877,0.0763,68544.0,68537.0,0.291812]
[1730099903106,0.21887745,68541.0,68538.0,0.17350381]
[1730099903322,0.222192,68544.0,68538.0,0.17350381]
[1730099903323,0.0763,68544.0,68538.0,0.17350381]
[1730099904019,0.145894,68543.0,68538.0,0.17350381]
[1730099904241,0.19896894,68541.0,68538.0,0.15050381]
[1730099904460,0.1459,68540.0,68538.0,0.15050381]
[1730099904681,0.19896894,68541.0,68538.0,0.15050381]
[1730099904915,0.34486694,68541.0,68538.0,0.15050381]
[1730099905161,0.145902,68539.0,68538.0,0.15050381]
[1730099905391,0.145899,68541.0,68540.0,0.0002]
[1730099905623,0.145899,68541.0,68540.0,0.15070381]
[1730099906358,0.145895,68543.0,68540.0,0.15066381]
[1730099906569,0.145895,68542.0,68541.0,0.15050381]
[1730099906783,0.222192,68544.0,68541.0,0.15050381]
[1730099906994,0.291787,68543.0,68541.0,0.15050381]
[1730099907211,0.0763,68544.0,68541.0,0.15050381]
[1730099907615,0.222192,68544.0,68541.0,0.15050381]
[1730099908020,0.0763,68544.0,68541.0,0.15050381]
[1730099908258,0.005,68551.0,68541.0,0.15050381]
[1730099908455,0.005,68551.0,68542.0,0.023]
[1730099908456,0.21887745,68551.0,68542.0,0.023]
[1730099908657,0.21887745,68551.0,68545.0,0.145888]
[1730099908856,0.21887745,68551.0,68546.0,0.15050381]
[1730099909055,0.0775,68552.0,68546.0,0.15050381]
[1730099909267,0.14588,68550.0,68546.0,0.15050381]
[1730099910107,0.0775,68552.0,68546.0,0.15050381]
[1730099910319,0.21887745,68551.0,68546.0,0.15050381]
[1730099910519,0.145878,68551.0,68546.0,0.15050381]
[1730099911243,0.0775,68552.0,68546.0,0.15050381]
[1730099911478,0.146879,68550.0,68546.0,0.15050381]
[1730099911695,0.001,68550.0,68546.0,0.15050381]
[1730099911907,0.145877,68551.0,68546.0,0.15050381]
[1730099912126,0.223375,68552.0,68546.0,0.15050381]
[1730099912370,0.001,68551.0,68546.0,0.15050381]
[1730099912823,0.145881,68549.0,68546.0,0.15050381]
[1730099913239,0.0775,68552.0,68546.0,0.15050381]
[1730099913449,0.005,68554.0,68546.0,0.15050381]
[1730099913657,0.145873,68553.0,68546.0,0.15050381]
[1730099913864,0.005,68555.0,68546.0,0.15050381]
[1730099914503,0.14588,68550.0,68546.0,0.15050381]
[1730099914728,0.145878,68551.0,68546.0,0.15050381]
[1730099914956,0.001,68552.0,68546.0,0.15050381]
[1730099915486,0.145885,68547.0,68546.0,0.15050381]
[1730099915691,0.145898,68541.0,68540.0,0.00016]
[1730099915901,0.145895,68543.0,68540.0,0.15066381]
[1730099916151,0.01,68548.0,68540.0,0.15066381]
[1730099916152,0.29176,68550.0,68541.0,0.15050381]
[1730099916352,0.21887745,68550.0,68541.0,0.15050381]
[1730099916567,0.006,68555.0,68541.0,0.15050381]
[1730099916819,0.29174,68554.0,68542.0,0.025]
[1730099917027,0.145877,68551.0,68545.0,0.023]
[1730099917241,0.001,68555.0,68546.0,0.15050381]
[1730099917242,0.291744,68554.0,68546.0,0.15050381]
[1730099917453,0.22487745,68555.0,68549.0,0.145879]
[1730099917659,0.22487745,68555.0,68550.0,0.15050381]
[1730099917660,0.37074545,68555.0,68550.0,0.15050381]
[1730099917871,0.005,68555.0,68550.0,0.15050381]
[1730099918499,0.145872,68554.0,68550.0,0.15050381]
[1730099918720,0.145873,68553.0,68550.0,0.15050381]
[1730099918968,0.29174,68554.0,68550.0,0.15050381]
[1730099919187,0.145876,68551.0,68550.0,0.15050381]
[1730099920514,0.20396894,68554.0,68531.0,0.145918]
[1730099920515,0.145898,68541.0,68531.0,0.145918]
[1730099920730,0.145898,68541.0,68530.0,0.21887745]
[1730099920731,0.28347727,68541.0,68540.0,0.15066381]
[1730099921372,0.28347727,68541.0,68540.0,0.00016]
[1730099921613,0.145898,68541.0,68540.0,0.00016]
[1730099922100,0.145898,68541.0,68540.0,0.00216]
[1730099922316,0.145898,68541.0,68540.0,0.00616]
[1730099922524,0.145898,68541.0,68540.0,0.00416]
[1730099922737,0.145898,68541.0,68540.0,0.00016]
[1730099922958,0.148898,68541.0,68540.0,0.00016]
[1730099923896,0.150898,68541.0,68540.0,0.00016]
[1730099924141,0.147898,68541.0,68540.0,0.00016]
[1730099924421,0.150898,68541.0,68540.0,0.00016]
[1730099924638,0.157898,68541.0,68540.0,0.00016]
[1730099925079,0.154898,68541.0,68540.0,0.00016]
[1730099925308,0.27978865,68541.0,68540.0,0.00016]
[1730099925531,0.27978865,68541.0,68521.0,0.21887745]
[1730099925532,0.015,68537.0,68530.0,0.21887745]
[1730099925753,0.015,68531.0,68530.0,0.21887745]
[1730099925976,0.015,68531.0,68521.0,0.21887745]
[1730099925977,0.005,68522.0,68521.0,0.21887745]
[1730099926208,0.28851727,68522.0,68521.0,0.21887745]
[1730099926408,0.28851727,68522.0,68512.0,0.145958]
[1730099926409,0.14595,68517.0,68512.0,0.145958]
[1730099926623,0.14595,68517.0,68515.0,0.15050381]
[1730099927286,0.145951,68516.0,68515.0,0.15050381]
[1730099927505,0.291881,68521.0,68515.0,0.15050381]
[1730099927733,0.14257927,68522.0,68515.0,0.15050381]
[1730099927958,0.14257927,68522.0,68516.0,0.14595]
[1730099928227,0.145942,68521.0,68517.0,0.15050381]
[1730099928443,0.14257927,68522.0,68517.0,0.15050381]
[1730099928665,0.145947,68518.0,68517.0,0.15050381]
[1730099929515,0.145943,68520.0,68517.0,0.15050381]
[1730099929737,0.14257927,68522.0,68517.0,0.15050381]
[1730099929738,0.005,68522.0,68517.0,0.15050381]
[1730099930190,0.145947,68518.0,68517.0,0.15050381]
[1730099930397,0.437829,68520.0,68517.0,0.15050381]
[1730099930614,0.150939,68522.0,68517.0,0.29645181]
[1730099930831,0.005,68522.0,68517.0,0.15050381]
[1730099931061,0.145945,68519.0,68517.0,0.15650381]
[1730099931292,0.145945,68519.0,68517.0,0.15250381]
[1730099931509,0.145947,68518.0,68517.0,0.15450381]
[1730099931733,0.28852627,68518.0,68517.0,0.004]
[1730099931988,0.29192,68512.0,68505.0,0.145973]
[1730099932206,0.291906,68515.0,68506.0,0.15050381]
[1730099932207,0.13757927,68513.0,68506.0,0.15050381]
[1730099932451,0.14597,68507.0,68506.0,0.15050381]
[1730099932683,0.005,68510.0,68506.0,0.15050381]
[1730099933146,0.145969,68508.0,68506.0,0.15050381]
[1730099933648,0.14597,68507.0,68506.0,0.15050381]
[1730099934099,0.437917,68506.0,68498.0,0.145988]
[1730099934342,0.28355527,68504.0,68503.0,0.001644]
[1730099934623,0.28855527,68504.0,68503.0,0.001644]
[1730099934879,0.3174108,68504.0,68503.0,0.001644]
[1730099935102,0.36485527,68504.0,68503.0,0.001644]
[1730099935568,0.50845527,68504.0,68503.0,0.004644]
[1730099936056,0.51145527,68504.0,68503.0,0.001644]
[1730099937499,0.50945527,68504.0,68503.0,0.001644]
[1730099937753,0.222276,68504.0,68503.0,0.001644]
[1730099937982,0.222276,68504.0,68503.0,0.29812681]
[1730099937983,0.01,68504.0,68503.0,0.29812681]
[1730099938282,0.01,68504.0,68503.0,0.32112681]
[1730099938514,0.005,68504.0,68503.0,0.32112681]
[1730099938734,0.006,68504.0,68503.0,0.32212681]
[1730099939160,0.005,68514.0,68506.0,0.291942]
[1730099939402,0.005,68514.0,68507.0,0.15050381]
[1730099939403,0.145961,68512.0,68507.0,0.15050381]
[1730099939656,0.145959,68512.0,68507.0,0.15050381]
[1730099939876,0.14596,68512.0,68507.0,0.29647281]
[1730099940302,0.14257927,68514.0,68507.0,0.15050381]
[1730099940523,0.145961,68511.0,68507.0,0.29647281]
[1730099940763,0.145961,68511.0,68507.0,0.30147281]
[1730099941213,0.291915,68513.0,68507.0,0.29647281]
[1730099941436,0.145961,68512.0,68507.0,0.30147281]
[1730099941654,0.145961,68512.0,68508.0,0.145968]
[1730099941867,0.145941,68521.0,68516.0,0.14595]
[1730099942077,0.21887745,68518.0,68517.0,0.15050381]
[1730099942290,0.005,68521.0,68517.0,0.15050381]
[1730099942291,0.145945,68519.0,68517.0,0.15050381]
[1730099942913,0.145947,68518.0,68517.0,0.15050381]
[1730099943122,0.150947,68518.0,68517.0,0.15050381]
[1730099943753,0.145947,68518.0,68517.0,0.15050381]
[1730099944174,0.150947,68518.0,68517.0,0.15050381]
[1730099944388,0.145947,68518.0,68517.0,0.15050381]
[1730099944617,0.150947,68518.0,68517.0,0.15250381]
[1730099944827,0.28852627,68518.0,68517.0,0.002]
[1730099945276,0.145947,68518.0,68517.0,0.001]
[1730099945694,0.145947,68518.0,68517.0,0.002]
[1730099946960,0.291898,68518.0,68510.0,0.145963]
[1730099947227,0.145953,68515.0,68511.0,0.15050381]
[1730099947440,0.145956,68514.0,68511.0,0.15050381]
[1730099947647,0.291902,68516.0,68511.0,0.15050381]
[1730099947856,0.001,68518.0,68516.0,0.145951]
[1730099948072,0.29186,68526.0,68514.0,0.002]
[1730099948073,0.005,68525.0,68518.0,0.291894]
[1730099948295,0.21887745,68535.0,68527.0,0.145927]
[1730099948296,0.22387745,68535.0,68527.0,0.145927]
[1730099948533,0.145915,68533.0,68527.0,0.29643081]
[1730099948756,0.21887745,68535.0,68528.0,0.002]
[1730099948965,0.000822,68536.0,68535.0,0.002]
[1730099949170,0.000822,68536.0,68535.0,0.29641381]
[1730099949379,0.000822,68536.0,68535.0,0.29841381]
[1730099949597,0.000822,68536.0,68535.0,0.15050381]
[1730099949814,0.000822,68536.0,68535.0,0.29641381]
[1730099950030,0.000822,68536.0,68535.0,0.15050381]
[1730099950667,0.000822,68536.0,68535.0,0.29641381]
[1730099951308,0.000822,68536.0,68535.0,0.30041381]
[1730099951521,0.000822,68536.0,68535.0,0.32341381]
[1730099951732,0.000822,68536.0,68535.0,0.32841381]
[1730099951949,0.000822,68536.0,68535.0,0.40601381]
[1730099952849,0.000822,68536.0,68535.0,0.40301381]
[1730099953310,0.000822,68536.0,68535.0,0.40201381]
[1730099953523,0.000822,68536.0,68535.0,0.55261372]
[1730099953773,0.000822,68536.0,68535.0,0.55661372]
[1730099953982,0.000822,68536.0,68535.0,0.5997286]
[1730099954407,0.000822,68536.0,68535.0,0.6037286]
[1730099954651,0.000822,68536.0,68535.0,0.79955393]
[1730099955098,0.000822,68536.0,68535.0,0.79855393]
[1730099955556,0.000822,68536.0,68535.0,0.79555393]
[1730099956028,0.000822,68536.0,68535.0,0.79755393]
[1730099956717,0.000822,68536.0,68535.0,0.80155393]
[1730099956947,0.000822,68536.0,68535.0,0.79755393]
[1730099957388,0.000822,68536.0,68535.0,0.80155393]
[1730099957613,0.000822,68536.0,68535.0,0.79555393]
[1730099957839,0.000822,68536.0,68535.0,0.74843905]
[1730099958063,0.000822,68536.0,68535.0,0.75543905]
[1730099958280,0.000822,68536.0,68535.0,0.43701381]
[1730099958489,0.000822,68536.0,68535.0,0.29841381]
[1730099958937,0.000822,68536.0,68535.0,0.30141381]
[1730099959365,0.000822,68536.0,68535.0,0.29841381]
[1730099959571,0.000822,68536.0,68535.0,0.31941381]
[1730099959801,0.000822,68536.0,68535.0,0.32341381]
[1730099960063,0.000822,68536.0,68535.0,0.32541381]
[1730099960284,0.000822,68536.0,68535.0,0.32141381]
[1730099960510,0.000822,68536.0,68535.0,0.32541381]
[1730099960745,0.000822,68536.0,68535.0,0.32841381]
[1730099961220,0.000822,68536.0,68535.0,0.52223914]
[1730099961446,0.000822,68536.0,68535.0,0.52923914]
[1730099961689,0.000822,68536.0,68535.0,0.53223914]
[1730099962146,0.000822,68536.0,68535.0,0.52923914]
[1730099962398,0.000822,68536.0,68535.0,0.53223914]
[1730099962897,0.000822,68536.0,68535.0,0.52823914]
[1730099963178,0.000822,68536.0,68535.0,0.53723905]
[1730099963417,0.000822,68536.0,68535.0,0.74763905]
[1730099963677,1e-06,68541.0,68540.0,0.49129991]
[1730099963909,0.000823,68557.0,68556.0,0.35716591]
[1730099964114,0.000823,68557.0,68556.0,0.55599124]
[1730099964335,0.02881469,68559.0,68558.0,0.28586091]
[1730099964559,0.21970345,68598.0,68572.0,0.78163191]
[1730099964778,0.21970345,68598.0,68590.0,0.34661833]
[1730099964994,0.21970345,68598.0,68590.0,0.80699833]
[1730099965220,0.21970345,68598.0,68592.0,0.023]
[1730099965433,0.000826,68598.0,68592.0,0.168789]
[1730099965866,0.000826,68598.0,68593.0,0.168787]
[1730099966070,0.000826,68598.0,68593.0,0.17350381]
[1730099969563,9e-05,68594.0,68593.0,0.76065081]
[1730099969770,9e-05,68594.0,68593.0,0.74165081]
[1730099969982,9e-05,68594.0,68593.0,0.58986381]
[1730099970191,9e-05,68594.0,68593.0,0.58786381]
[1730099970406,9e-05,68594.0,68593.0,0.59186381]
[1730099970617,9e-05,68594.0,68593.0,0.59386381]
[1730099970808,9e-05,68594.0,68593.0,0.74165081]
[1730099971094,9e-05,68594.0,68593.0,0.74365081]
[1730099971337,9e-05,68594.0,68593.0,0.76065081]
[1730099971776,9e-05,68594.0,68593.0,0.75865081]
[1730099971977,0.000913,68594.0,68593.0,0.75865081]
[1730099972189,0.000913,68594.0,68593.0,0.76065081]
[1730099972608,0.000913,68594.0,68593.0,0.76465081]
[1730099973055,0.000913,68594.0,68593.0,0.76265081]
[1730099973317,0.000913,68594.0,68593.0,0.76665081]
[1730099973535,0.000913,68594.0,68593.0,0.61086381]
[1730099973982,0.000913,68594.0,68593.0,0.61686381]
[1730099974258,0.000913,68594.0,68593.0,0.59386381]
[1730099974464,0.000913,68594.0,68593.0,0.59186381]
[1730099974668,0.146698,68594.0,68593.0,0.59186381]
[1730099974881,0.000913,68594.0,68593.0,0.59386381]
[1730099975321,0.000913,68594.0,68593.0,0.59186381]
[1730099975532,0.000913,68594.0,68593.0,0.73365081]
[1730099975744,0.000913,68594.0,68593.0,0.58786381]
[1730099975946,0.000913,68594.0,68593.0,0.59186381]
[1730099976356,0.000913,68594.0,68593.0,0.76065081]
[1730099976571,0.000913,68594.0,68593.0,0.76665081]
[1730099976756,0.000913,68594.0,68593.0,0.76065081]
[1730099977220,0.000913,68594.0,68593.0,0.76265081]
[1730099977442,0.000913,68594.0,68593.0,0.75865081]
[1730099977655,0.000913,68594.0,68593.0,0.76065081]
[1730099978099,0.000913,68594.0,68593.0,0.75865081]
[1730099978309,0.000913,68594.0,68593.0,0.76065081]
[1730099978729,0.000913,68594.0,68593.0,0.95947614]
[1730099978951,0.000913,68594.0,68593.0,0.96347614]
[1730099979209,0.000913,68594.0,68593.0,0.96447614]
[1730099979416,0.000913,68594.0,68593.0,0.96847614]
[1730099980158,0.000913,68594.0,68593.0,0.96447614]
[1730099980363,0.000913,68594.0,68593.0,0.96847614]
[1730099980598,0.000913,68594.0,68593.0,0.76965081]
[1730099980852,0.000913,68594.0,68593.0,0.73765081]
[1730099981290,0.000913,68594.0,68593.0,0.73965081]
[1730099981515,0.000913,68594.0,68593.0,0.74165081]
[1730099981733,0.000913,68594.0,68593.0,0.73965081]
[1730099981953,0.000913,68594.0,68593.0,0.73565081]
[1730099982169,0.000913,68594.0,68593.0,0.73765081]
[1730099982390,0.000913,68594.0,68593.0,0.94547614]
[1730099982610,0.000913,68594.0,68593.0,0.96247614]
[1730099982856,0.000913,68594.0,68593.0,0.96703805]
[1730099983067,0.000913,68594.0,68593.0,0.97103805]
[1730099983281,0.000913,68594.0,68593.0,0.96703805]
[1730099983749,0.000913,68594.0,68593.0,0.97103805]
[1730099984220,0.000913,68594.0,68593.0,0.97303805]
[1730099984660,0.000913,68594.0,68593.0,0.97103805]
[1730099984873,0.000913,68594.0,68593.0,0.97303805]
[1730099985589,0.000913,68594.0,68593.0,0.96903805]
[1730099986238,0.000913,68594.0,68593.0,0.97303805]
[1730099987762,0.000913,68594.0,68593.0,0.76921272]
[1730099987980,0.000913,68594.0,68593.0,0.73965081]
[1730099988642,0.082813,68594.0,68593.0,0.59386381]
[1730099988869,0.082813,68594.0,68593.0,0.59186381]
[1730099989091,0.000913,68594.0,68593.0,0.58986381]
[1730099989367,0.000913,68594.0,68593.0,0.73965081]
[1730099989583,0.000913,68594.0,68593.0,0.59386381]
[1730099989798,0.000913,68594.0,68593.0,0.73565081]
[1730099990236,0.000913,68594.0,68593.0,0.73965081]
[1730099990465,0.000913,68594.0,68593.0,0.73765081]
[1730099990893,0.000913,68594.0,68593.0,0.73965081]
[1730099991315,0.000913,68594.0,68593.0,0.59186381]
[1730099991550,0.000913,68594.0,68593.0,0.73365081]
[1730099991779,0.000913,68594.0,68593.0,0.73965081]
[1730099992036,0.000913,68594.0,68593.0,0.76265081]
[1730099992274,0.000913,68594.0,68593.0,0.76521319]
[1730099992533,0.000913,68594.0,68593.0,0.76921319]
[1730099993197,0.000913,68594.0,68593.0,0.59842619]
[1730099993459,0.146698,68594.0,68593.0,0.59842619]
[1730099993716,0.000913,68594.0,68593.0,0.59842619]
[1730099994199,0.146698,68594.0,68593.0,0.59642619]
[1730099994457,0.146698,68594.0,68593.0,0.43936]